{"text_format":"3","workbook":"xlsx","n_sheets":3,"sheets":["Adatbevitel","Értékesítési jelentés","Értékesítési előrejelzés"],"not_rendered":{"charts":5,"defined_names":8,"pivot_tables":1},"read":"whole","date_system":"1900"}

{"sheet":"Adatbevitel","index":0,"n_rows":24,"n_cols":17,"rows_kept":24}
[{"$nulls":9},{"$f":"365*2","v":730}]
[null,"HAVI ADATBEVITEL"]
[{"$nulls":11},"ÖSSZESEN",null,null,"ELŐREJELZÉS"]
[]
[null,"DÁTUM","VÁLLALAT","ÖSSZEG","TERVEZETT","KÖLTSÉG","BEVÉTEL","HÓNAP","NEGYEDÉV","ÉV","HÓNAP SZÁMA (ELREJTÉS)","HÓNAP ","NEGYEDÉV ","ÉVES ","HÓNAP  ","NEGYEDÉV  ","ÉV  "]
[null,{"$f":"40657+(365*2)","v":"2013-04-23"},"A. Datum Corporation",{"v":6400,"d":"6,400.00 Ft"},{"v":6200,"d":"6,200.00 Ft"},{"v":4450,"d":"4,450.00 Ft"},{"$f":"táblázatAdatok[[#This Row],[ÖSSZEG]]-táblázatAdatok[[#This Row],[KÖLTSÉG]]","v":{"v":1950,"d":"1,950.00 Ft"}},{"$f":"DATE(YEAR(Adatbevitel!$B6),MONTH(Adatbevitel!$B6),1)","v":"2013-04-01"},{"$f":"LOOKUP(MONTH(Adatbevitel!$H6),{1,1;2,1;3,1;4,2;5,2;6,2;7,3;8,3;9,3;10,4;11,4;12,4})","v":{"v":2,"d":"Negyedév 2"}},{"$f":"YEAR(Adatbevitel!$B6)","v":2013},{"$f":"MONTH(táblázatAdatok[[#This Row],[DÁTUM]])","v":4},{"$f":"SUMIFS(táblázatAdatok[ÖSSZEG],táblázatAdatok[DÁTUM],\">=\"&EOMONTH(táblázatAdatok[[#This Row],[DÁTUM]],-1)+1,táblázatAdatok[DÁTUM],\"<=\"&EOMONTH(táblázatAdatok[[#This Row],[DÁTUM]],0))","v":{"v":14600,"d":"14,600.00 Ft"}},{"$f":"SUMIFS(táblázatAdatok[ÖSSZEG],táblázatAdatok[DÁTUM],\">=\"&DATE(YEAR(táblázatAdatok[[#This Row],[DÁTUM]]),1,1),táblázatAdatok[DÁTUM],\"<=\"&DATE(YEAR(táblázatAdatok[[#This Row],[DÁTUM]]),12,31),táblázatAdatok[NEGYEDÉV],táblázatAdatok[[#This Row],[NEGYEDÉV]])","v":{"v":50800,"d":"50,800.00 Ft"}},{"$f":"SUMIFS(táblázatAdatok[ÖSSZEG],táblázatAdatok[DÁTUM],\">=\"&DATE(YEAR(táblázatAdatok[[#This Row],[DÁTUM]]),1,1),táblázatAdatok[DÁTUM],\"<=\"&DATE(YEAR(táblázatAdatok[[#This Row],[DÁTUM]]),12,31))","v":{"v":143800,"d":"143,800.00 Ft"}},{"$f":"IFERROR(TREND($L$6:INDEX($L:$L,ROW(),1),$K$6:INDEX($K:$K,ROW(),1),IF(MONTH(táblázatAdatok[[#This Row],[DÁTUM]])=12,13,MONTH(táblázatAdatok[[#This Row],[DÁTUM]])+1)),\"\")","v":{"v":14600,"d":"14,600.00 Ft"}},{"$f":"IFERROR(TREND($M$6:INDEX($M:$M,ROW(),1),$I$6:INDEX($I:$I,ROW(),1),IF(táblázatAdatok[[#This Row],[NEGYEDÉV]]=4,5,táblázatAdatok[[#This Row],[NEGYEDÉV]]+1)),\"\")","v":{"v":50800,"d":"50,800.00 Ft"}},{"$f":"IFERROR(TREND($N$6:INDEX($N:$N,ROW(),1),$J$6:INDEX($J:$J,ROW(),1),táblázatAdatok[[#This Row],[ÉV]]+1),\"\")","v":{"v":143800,"d":"143,800.00 Ft"}}]
[null,{"$f":"40659+(365*2)","v":"2013-04-25"},"Contoso Pharmaceuticals",{"v":8200,"d":"8,200.00 Ft"},{"v":8000,"d":"8,000.00 Ft"},{"v":6400,"d":"6,400.00 Ft"},{"$f":"táblázatAdatok[[#This Row],[ÖSSZEG]]-táblázatAdatok[[#This Row],[KÖLTSÉG]]","v":{"v":1800,"d":"1,800.00 Ft"}},{"$f":"DATE(YEAR(Adatbevitel!$B7),MONTH(Adatbevitel!$B7),1)","v":"2013-04-01"},{"$f":"LOOKUP(MONTH(Adatbevitel!$H7),{1,1;2,1;3,1;4,2;5,2;6,2;7,3;8,3;9,3;10,4;11,4;12,4})","v":{"v":2,"d":"Negyedév 2"}},{"$f":"YEAR(Adatbevitel!$B7)","v":2013},{"$f":"MONTH(táblázatAdatok[[#This Row],[DÁTUM]])","v":4},{"$f":"SUMIFS(táblázatAdatok[ÖSSZEG],táblázatAdatok[DÁTUM],\">=\"&EOMONTH(táblázatAdatok[[#This Row],[DÁTUM]],-1)+1,táblázatAdatok[DÁTUM],\"<=\"&EOMONTH(táblázatAdatok[[#This Row],[DÁTUM]],0))","v":{"v":14600,"d":"14,600.00 Ft"}},{"$f":"SUMIFS(táblázatAdatok[ÖSSZEG],táblázatAdatok[DÁTUM],\">=\"&DATE(YEAR(táblázatAdatok[[#This Row],[DÁTUM]]),1,1),táblázatAdatok[DÁTUM],\"<=\"&DATE(YEAR(táblázatAdatok[[#This Row],[DÁTUM]]),12,31),táblázatAdatok[NEGYEDÉV],táblázatAdatok[[#This Row],[NEGYEDÉV]])","v":{"v":50800,"d":"50,800.00 Ft"}},{"$f":"SUMIFS(táblázatAdatok[ÖSSZEG],táblázatAdatok[DÁTUM],\">=\"&DATE(YEAR(táblázatAdatok[[#This Row],[DÁTUM]]),1,1),táblázatAdatok[DÁTUM],\"<=\"&DATE(YEAR(táblázatAdatok[[#This Row],[DÁTUM]]),12,31))","v":{"v":143800,"d":"143,800.00 Ft"}},{"$f":"IFERROR(TREND($L$6:INDEX($L:$L,ROW(),1),$K$6:INDEX($K:$K,ROW(),1),IF(MONTH(táblázatAdatok[[#This Row],[DÁTUM]])=12,13,MONTH(táblázatAdatok[[#This Row],[DÁTUM]])+1)),\"\")","v":{"v":14600,"d":"14,600.00 Ft"}},{"$f":"IFERROR(TREND($M$6:INDEX($M:$M,ROW(),1),$I$6:INDEX($I:$I,ROW(),1),IF(táblázatAdatok[[#This Row],[NEGYEDÉV]]=4,5,táblázatAdatok[[#This Row],[NEGYEDÉV]]+1)),\"\")","v":{"v":50800,"d":"50,800.00 Ft"}},{"$f":"IFERROR(TREND($N$6:INDEX($N:$N,ROW(),1),$J$6:INDEX($J:$J,ROW(),1),táblázatAdatok[[#This Row],[ÉV]]+1),\"\")","v":{"v":143800,"d":"143,800.00 Ft"}}]
[null,{"$f":"40671+(365*2)","v":"2013-05-07"},"Consolidated Messenger",{"v":4400,"d":"4,400.00 Ft"},{"v":4200,"d":"4,200.00 Ft"},{"v":2600,"d":"2,600.00 Ft"},{"$f":"táblázatAdatok[[#This Row],[ÖSSZEG]]-táblázatAdatok[[#This Row],[KÖLTSÉG]]","v":{"v":1800,"d":"1,800.00 Ft"}},{"$f":"DATE(YEAR(Adatbevitel!$B8),MONTH(Adatbevitel!$B8),1)","v":"2013-05-01"},{"$f":"LOOKUP(MONTH(Adatbevitel!$H8),{1,1;2,1;3,1;4,2;5,2;6,2;7,3;8,3;9,3;10,4;11,4;12,4})","v":{"v":2,"d":"Negyedév 2"}},{"$f":"YEAR(Adatbevitel!$B8)","v":2013},{"$f":"MONTH(táblázatAdatok[[#This Row],[DÁTUM]])","v":5},{"$f":"SUMIFS(táblázatAdatok[ÖSSZEG],táblázatAdatok[DÁTUM],\">=\"&EOMONTH(táblázatAdatok[[#This Row],[DÁTUM]],-1)+1,táblázatAdatok[DÁTUM],\"<=\"&EOMONTH(táblázatAdatok[[#This Row],[DÁTUM]],0))","v":{"v":21800,"d":"21,800.00 Ft"}},{"$f":"SUMIFS(táblázatAdatok[ÖSSZEG],táblázatAdatok[DÁTUM],\">=\"&DATE(YEAR(táblázatAdatok[[#This Row],[DÁTUM]]),1,1),táblázatAdatok[DÁTUM],\"<=\"&DATE(YEAR(táblázatAdatok[[#This Row],[DÁTUM]]),12,31),táblázatAdatok[NEGYEDÉV],táblázatAdatok[[#This Row],[NEGYEDÉV]])","v":{"v":50800,"d":"50,800.00 Ft"}},{"$f":"SUMIFS(táblázatAdatok[ÖSSZEG],táblázatAdatok[DÁTUM],\">=\"&DATE(YEAR(táblázatAdatok[[#This Row],[DÁTUM]]),1,1),táblázatAdatok[DÁTUM],\"<=\"&DATE(YEAR(táblázatAdatok[[#This Row],[DÁTUM]]),12,31))","v":{"v":143800,"d":"143,800.00 Ft"}},{"$f":"IFERROR(TREND($L$6:INDEX($L:$L,ROW(),1),$K$6:INDEX($K:$K,ROW(),1),IF(MONTH(táblázatAdatok[[#This Row],[DÁTUM]])=12,13,MONTH(táblázatAdatok[[#This Row],[DÁTUM]])+1)),\"\")","v":{"v":28999.999999999996,"d":"29,000.00 Ft"}},{"$f":"IFERROR(TREND($M$6:INDEX($M:$M,ROW(),1),$I$6:INDEX($I:$I,ROW(),1),IF(táblázatAdatok[[#This Row],[NEGYEDÉV]]=4,5,táblázatAdatok[[#This Row],[NEGYEDÉV]]+1)),\"\")","v":{"v":50800,"d":"50,800.00 Ft"}},{"$f":"IFERROR(TREND($N$6:INDEX($N:$N,ROW(),1),$J$6:INDEX($J:$J,ROW(),1),táblázatAdatok[[#This Row],[ÉV]]+1),\"\")","v":{"v":143800,"d":"143,800.00 Ft"}}]
[null,{"$f":"40678+(365*2)","v":"2013-05-14"},"Proseware, Inc.",{"v":5400,"d":"5,400.00 Ft"},{"v":5500,"d":"5,500.00 Ft"},{"v":4500,"d":"4,500.00 Ft"},{"$f":"táblázatAdatok[[#This Row],[ÖSSZEG]]-táblázatAdatok[[#This Row],[KÖLTSÉG]]","v":{"v":900,"d":"900.00 Ft"}},{"$f":"DATE(YEAR(Adatbevitel!$B9),MONTH(Adatbevitel!$B9),1)","v":"2013-05-01"},{"$f":"LOOKUP(MONTH(Adatbevitel!$H9),{1,1;2,1;3,1;4,2;5,2;6,2;7,3;8,3;9,3;10,4;11,4;12,4})","v":{"v":2,"d":"Negyedév 2"}},{"$f":"YEAR(Adatbevitel!$B9)","v":2013},{"$f":"MONTH(táblázatAdatok[[#This Row],[DÁTUM]])","v":5},{"$f":"SUMIFS(táblázatAdatok[ÖSSZEG],táblázatAdatok[DÁTUM],\">=\"&EOMONTH(táblázatAdatok[[#This Row],[DÁTUM]],-1)+1,táblázatAdatok[DÁTUM],\"<=\"&EOMONTH(táblázatAdatok[[#This Row],[DÁTUM]],0))","v":{"v":21800,"d":"21,800.00 Ft"}},{"$f":"SUMIFS(táblázatAdatok[ÖSSZEG],táblázatAdatok[DÁTUM],\">=\"&DATE(YEAR(táblázatAdatok[[#This Row],[DÁTUM]]),1,1),táblázatAdatok[DÁTUM],\"<=\"&DATE(YEAR(táblázatAdatok[[#This Row],[DÁTUM]]),12,31),táblázatAdatok[NEGYEDÉV],táblázatAdatok[[#This Row],[NEGYEDÉV]])","v":{"v":50800,"d":"50,800.00 Ft"}},{"$f":"SUMIFS(táblázatAdatok[ÖSSZEG],táblázatAdatok[DÁTUM],\">=\"&DATE(YEAR(táblázatAdatok[[#This Row],[DÁTUM]]),1,1),táblázatAdatok[DÁTUM],\"<=\"&DATE(YEAR(táblázatAdatok[[#This Row],[DÁTUM]]),12,31))","v":{"v":143800,"d":"143,800.00 Ft"}},{"$f":"IFERROR(TREND($L$6:INDEX($L:$L,ROW(),1),$K$6:INDEX($K:$K,ROW(),1),IF(MONTH(táblázatAdatok[[#This Row],[DÁTUM]])=12,13,MONTH(táblázatAdatok[[#This Row],[DÁTUM]])+1)),\"\")","v":{"v":29000,"d":"29,000.00 Ft"}},{"$f":"IFERROR(TREND($M$6:INDEX($M:$M,ROW(),1),$I$6:INDEX($I:$I,ROW(),1),IF(táblázatAdatok[[#This Row],[NEGYEDÉV]]=4,5,táblázatAdatok[[#This Row],[NEGYEDÉV]]+1)),\"\")","v":{"v":50800,"d":"50,800.00 Ft"}},{"$f":"IFERROR(TREND($N$6:INDEX($N:$N,ROW(),1),$J$6:INDEX($J:$J,ROW(),1),táblázatAdatok[[#This Row],[ÉV]]+1),\"\")","v":{"v":143800,"d":"143,800.00 Ft"}}]
[null,{"$f":"40678+(365*2)","v":"2013-05-14"},"Képzőművészeti Iskola",{"v":5800,"d":"5,800.00 Ft"},{"v":6000,"d":"6,000.00 Ft"},{"v":4500,"d":"4,500.00 Ft"},{"$f":"táblázatAdatok[[#This Row],[ÖSSZEG]]-táblázatAdatok[[#This Row],[KÖLTSÉG]]","v":{"v":1300,"d":"1,300.00 Ft"}},{"$f":"DATE(YEAR(Adatbevitel!$B10),MONTH(Adatbevitel!$B10),1)","v":"2013-05-01"},{"$f":"LOOKUP(MONTH(Adatbevitel!$H10),{1,1;2,1;3,1;4,2;5,2;6,2;7,3;8,3;9,3;10,4;11,4;12,4})","v":{"v":2,"d":"Negyedév 2"}},{"$f":"YEAR(Adatbevitel!$B10)","v":2013},{"$f":"MONTH(táblázatAdatok[[#This Row],[DÁTUM]])","v":5},{"$f":"SUMIFS(táblázatAdatok[ÖSSZEG],táblázatAdatok[DÁTUM],\">=\"&EOMONTH(táblázatAdatok[[#This Row],[DÁTUM]],-1)+1,táblázatAdatok[DÁTUM],\"<=\"&EOMONTH(táblázatAdatok[[#This Row],[DÁTUM]],0))","v":{"v":21800,"d":"21,800.00 Ft"}},{"$f":"SUMIFS(táblázatAdatok[ÖSSZEG],táblázatAdatok[DÁTUM],\">=\"&DATE(YEAR(táblázatAdatok[[#This Row],[DÁTUM]]),1,1),táblázatAdatok[DÁTUM],\"<=\"&DATE(YEAR(táblázatAdatok[[#This Row],[DÁTUM]]),12,31),táblázatAdatok[NEGYEDÉV],táblázatAdatok[[#This Row],[NEGYEDÉV]])","v":{"v":50800,"d":"50,800.00 Ft"}},{"$f":"SUMIFS(táblázatAdatok[ÖSSZEG],táblázatAdatok[DÁTUM],\">=\"&DATE(YEAR(táblázatAdatok[[#This Row],[DÁTUM]]),1,1),táblázatAdatok[DÁTUM],\"<=\"&DATE(YEAR(táblázatAdatok[[#This Row],[DÁTUM]]),12,31))","v":{"v":143800,"d":"143,800.00 Ft"}},{"$f":"IFERROR(TREND($L$6:INDEX($L:$L,ROW(),1),$K$6:INDEX($K:$K,ROW(),1),IF(MONTH(táblázatAdatok[[#This Row],[DÁTUM]])=12,13,MONTH(táblázatAdatok[[#This Row],[DÁTUM]])+1)),\"\")","v":{"v":29000,"d":"29,000.00 Ft"}},{"$f":"IFERROR(TREND($M$6:INDEX($M:$M,ROW(),1),$I$6:INDEX($I:$I,ROW(),1),IF(táblázatAdatok[[#This Row],[NEGYEDÉV]]=4,5,táblázatAdatok[[#This Row],[NEGYEDÉV]]+1)),\"\")","v":{"v":50800,"d":"50,800.00 Ft"}},{"$f":"IFERROR(TREND($N$6:INDEX($N:$N,ROW(),1),$J$6:INDEX($J:$J,ROW(),1),táblázatAdatok[[#This Row],[ÉV]]+1),\"\")","v":{"v":143800,"d":"143,800.00 Ft"}}]
[null,{"$f":"40693+(365*2)","v":"2013-05-29"},"Trey Research",{"v":6200,"d":"6,200.00 Ft"},{"v":6000,"d":"6,000.00 Ft"},{"v":4500,"d":"4,500.00 Ft"},{"$f":"táblázatAdatok[[#This Row],[ÖSSZEG]]-táblázatAdatok[[#This Row],[KÖLTSÉG]]","v":{"v":1700,"d":"1,700.00 Ft"}},{"$f":"DATE(YEAR(Adatbevitel!$B11),MONTH(Adatbevitel!$B11),1)","v":"2013-05-01"},{"$f":"LOOKUP(MONTH(Adatbevitel!$H11),{1,1;2,1;3,1;4,2;5,2;6,2;7,3;8,3;9,3;10,4;11,4;12,4})","v":{"v":2,"d":"Negyedév 2"}},{"$f":"YEAR(Adatbevitel!$B11)","v":2013},{"$f":"MONTH(táblázatAdatok[[#This Row],[DÁTUM]])","v":5},{"$f":"SUMIFS(táblázatAdatok[ÖSSZEG],táblázatAdatok[DÁTUM],\">=\"&EOMONTH(táblázatAdatok[[#This Row],[DÁTUM]],-1)+1,táblázatAdatok[DÁTUM],\"<=\"&EOMONTH(táblázatAdatok[[#This Row],[DÁTUM]],0))","v":{"v":21800,"d":"21,800.00 Ft"}},{"$f":"SUMIFS(táblázatAdatok[ÖSSZEG],táblázatAdatok[DÁTUM],\">=\"&DATE(YEAR(táblázatAdatok[[#This Row],[DÁTUM]]),1,1),táblázatAdatok[DÁTUM],\"<=\"&DATE(YEAR(táblázatAdatok[[#This Row],[DÁTUM]]),12,31),táblázatAdatok[NEGYEDÉV],táblázatAdatok[[#This Row],[NEGYEDÉV]])","v":{"v":50800,"d":"50,800.00 Ft"}},{"$f":"SUMIFS(táblázatAdatok[ÖSSZEG],táblázatAdatok[DÁTUM],\">=\"&DATE(YEAR(táblázatAdatok[[#This Row],[DÁTUM]]),1,1),táblázatAdatok[DÁTUM],\"<=\"&DATE(YEAR(táblázatAdatok[[#This Row],[DÁTUM]]),12,31))","v":{"v":143800,"d":"143,800.00 Ft"}},{"$f":"IFERROR(TREND($L$6:INDEX($L:$L,ROW(),1),$K$6:INDEX($K:$K,ROW(),1),IF(MONTH(táblázatAdatok[[#This Row],[DÁTUM]])=12,13,MONTH(táblázatAdatok[[#This Row],[DÁTUM]])+1)),\"\")","v":{"v":29000,"d":"29,000.00 Ft"}},{"$f":"IFERROR(TREND($M$6:INDEX($M:$M,ROW(),1),$I$6:INDEX($I:$I,ROW(),1),IF(táblázatAdatok[[#This Row],[NEGYEDÉV]]=4,5,táblázatAdatok[[#This Row],[NEGYEDÉV]]+1)),\"\")","v":{"v":50800,"d":"50,800.00 Ft"}},{"$f":"IFERROR(TREND($N$6:INDEX($N:$N,ROW(),1),$J$6:INDEX($J:$J,ROW(),1),táblázatAdatok[[#This Row],[ÉV]]+1),\"\")","v":{"v":143800,"d":"143,800.00 Ft"}}]
[null,{"$f":"40705+(365*2)","v":"2013-06-10"},"A. Datum Corporation",{"v":6900,"d":"6,900.00 Ft"},{"v":7500,"d":"7,500.00 Ft"},{"v":5400,"d":"5,400.00 Ft"},{"$f":"táblázatAdatok[[#This Row],[ÖSSZEG]]-táblázatAdatok[[#This Row],[KÖLTSÉG]]","v":{"v":1500,"d":"1,500.00 Ft"}},{"$f":"DATE(YEAR(Adatbevitel!$B12),MONTH(Adatbevitel!$B12),1)","v":"2013-06-01"},{"$f":"LOOKUP(MONTH(Adatbevitel!$H12),{1,1;2,1;3,1;4,2;5,2;6,2;7,3;8,3;9,3;10,4;11,4;12,4})","v":{"v":2,"d":"Negyedév 2"}},{"$f":"YEAR(Adatbevitel!$B12)","v":2013},{"$f":"MONTH(táblázatAdatok[[#This Row],[DÁTUM]])","v":6},{"$f":"SUMIFS(táblázatAdatok[ÖSSZEG],táblázatAdatok[DÁTUM],\">=\"&EOMONTH(táblázatAdatok[[#This Row],[DÁTUM]],-1)+1,táblázatAdatok[DÁTUM],\"<=\"&EOMONTH(táblázatAdatok[[#This Row],[DÁTUM]],0))","v":{"v":14400,"d":"14,400.00 Ft"}},{"$f":"SUMIFS(táblázatAdatok[ÖSSZEG],táblázatAdatok[DÁTUM],\">=\"&DATE(YEAR(táblázatAdatok[[#This Row],[DÁTUM]]),1,1),táblázatAdatok[DÁTUM],\"<=\"&DATE(YEAR(táblázatAdatok[[#This Row],[DÁTUM]]),12,31),táblázatAdatok[NEGYEDÉV],táblázatAdatok[[#This Row],[NEGYEDÉV]])","v":{"v":50800,"d":"50,800.00 Ft"}},{"$f":"SUMIFS(táblázatAdatok[ÖSSZEG],táblázatAdatok[DÁTUM],\">=\"&DATE(YEAR(táblázatAdatok[[#This Row],[DÁTUM]]),1,1),táblázatAdatok[DÁTUM],\"<=\"&DATE(YEAR(táblázatAdatok[[#This Row],[DÁTUM]]),12,31))","v":{"v":143800,"d":"143,800.00 Ft"}},{"$f":"IFERROR(TREND($L$6:INDEX($L:$L,ROW(),1),$K$6:INDEX($K:$K,ROW(),1),IF(MONTH(táblázatAdatok[[#This Row],[DÁTUM]])=12,13,MONTH(táblázatAdatok[[#This Row],[DÁTUM]])+1)),\"\")","v":{"v":21600.000000000004,"d":"21,600.00 Ft"}},{"$f":"IFERROR(TREND($M$6:INDEX($M:$M,ROW(),1),$I$6:INDEX($I:$I,ROW(),1),IF(táblázatAdatok[[#This Row],[NEGYEDÉV]]=4,5,táblázatAdatok[[#This Row],[NEGYEDÉV]]+1)),\"\")","v":{"v":50800,"d":"50,800.00 Ft"}},{"$f":"IFERROR(TREND($N$6:INDEX($N:$N,ROW(),1),$J$6:INDEX($J:$J,ROW(),1),táblázatAdatok[[#This Row],[ÉV]]+1),\"\")","v":{"v":143800,"d":"143,800.00 Ft"}}]
[null,{"$f":"40716+(365*2)","v":"2013-06-21"},"Contoso Pharmaceuticals",{"v":7500,"d":"7,500.00 Ft"},{"v":7200,"d":"7,200.00 Ft"},{"v":6500,"d":"6,500.00 Ft"},{"$f":"táblázatAdatok[[#This Row],[ÖSSZEG]]-táblázatAdatok[[#This Row],[KÖLTSÉG]]","v":{"v":1000,"d":"1,000.00 Ft"}},{"$f":"DATE(YEAR(Adatbevitel!$B13),MONTH(Adatbevitel!$B13),1)","v":"2013-06-01"},{"$f":"LOOKUP(MONTH(Adatbevitel!$H13),{1,1;2,1;3,1;4,2;5,2;6,2;7,3;8,3;9,3;10,4;11,4;12,4})","v":{"v":2,"d":"Negyedév 2"}},{"$f":"YEAR(Adatbevitel!$B13)","v":2013},{"$f":"MONTH(táblázatAdatok[[#This Row],[DÁTUM]])","v":6},{"$f":"SUMIFS(táblázatAdatok[ÖSSZEG],táblázatAdatok[DÁTUM],\">=\"&EOMONTH(táblázatAdatok[[#This Row],[DÁTUM]],-1)+1,táblázatAdatok[DÁTUM],\"<=\"&EOMONTH(táblázatAdatok[[#This Row],[DÁTUM]],0))","v":{"v":14400,"d":"14,400.00 Ft"}},{"$f":"SUMIFS(táblázatAdatok[ÖSSZEG],táblázatAdatok[DÁTUM],\">=\"&DATE(YEAR(táblázatAdatok[[#This Row],[DÁTUM]]),1,1),táblázatAdatok[DÁTUM],\"<=\"&DATE(YEAR(táblázatAdatok[[#This Row],[DÁTUM]]),12,31),táblázatAdatok[NEGYEDÉV],táblázatAdatok[[#This Row],[NEGYEDÉV]])","v":{"v":50800,"d":"50,800.00 Ft"}},{"$f":"SUMIFS(táblázatAdatok[ÖSSZEG],táblázatAdatok[DÁTUM],\">=\"&DATE(YEAR(táblázatAdatok[[#This Row],[DÁTUM]]),1,1),táblázatAdatok[DÁTUM],\"<=\"&DATE(YEAR(táblázatAdatok[[#This Row],[DÁTUM]]),12,31))","v":{"v":143800,"d":"143,800.00 Ft"}},{"$f":"IFERROR(TREND($L$6:INDEX($L:$L,ROW(),1),$K$6:INDEX($K:$K,ROW(),1),IF(MONTH(táblázatAdatok[[#This Row],[DÁTUM]])=12,13,MONTH(táblázatAdatok[[#This Row],[DÁTUM]])+1)),\"\")","v":{"v":17950,"d":"17,950.00 Ft"}},{"$f":"IFERROR(TREND($M$6:INDEX($M:$M,ROW(),1),$I$6:INDEX($I:$I,ROW(),1),IF(táblázatAdatok[[#This Row],[NEGYEDÉV]]=4,5,táblázatAdatok[[#This Row],[NEGYEDÉV]]+1)),\"\")","v":{"v":50800,"d":"50,800.00 Ft"}},{"$f":"IFERROR(TREND($N$6:INDEX($N:$N,ROW(),1),$J$6:INDEX($J:$J,ROW(),1),táblázatAdatok[[#This Row],[ÉV]]+1),\"\")","v":{"v":143800,"d":"143,800.00 Ft"}}]
[null,{"$f":"40731+(365*2)","v":"2013-07-06"},"Consolidated Messenger",{"v":8700,"d":"8,700.00 Ft"},{"v":8500,"d":"8,500.00 Ft"},{"v":7250,"d":"7,250.00 Ft"},{"$f":"táblázatAdatok[[#This Row],[ÖSSZEG]]-táblázatAdatok[[#This Row],[KÖLTSÉG]]","v":{"v":1450,"d":"1,450.00 Ft"}},{"$f":"DATE(YEAR(Adatbevitel!$B14),MONTH(Adatbevitel!$B14),1)","v":"2013-07-01"},{"$f":"LOOKUP(MONTH(Adatbevitel!$H14),{1,1;2,1;3,1;4,2;5,2;6,2;7,3;8,3;9,3;10,4;11,4;12,4})","v":{"v":3,"d":"Negyedév 3"}},{"$f":"YEAR(Adatbevitel!$B14)","v":2013},{"$f":"MONTH(táblázatAdatok[[#This Row],[DÁTUM]])","v":7},{"$f":"SUMIFS(táblázatAdatok[ÖSSZEG],táblázatAdatok[DÁTUM],\">=\"&EOMONTH(táblázatAdatok[[#This Row],[DÁTUM]],-1)+1,táblázatAdatok[DÁTUM],\"<=\"&EOMONTH(táblázatAdatok[[#This Row],[DÁTUM]],0))","v":{"v":8700,"d":"8,700.00 Ft"}},{"$f":"SUMIFS(táblázatAdatok[ÖSSZEG],táblázatAdatok[DÁTUM],\">=\"&DATE(YEAR(táblázatAdatok[[#This Row],[DÁTUM]]),1,1),táblázatAdatok[DÁTUM],\"<=\"&DATE(YEAR(táblázatAdatok[[#This Row],[DÁTUM]]),12,31),táblázatAdatok[NEGYEDÉV],táblázatAdatok[[#This Row],[NEGYEDÉV]])","v":{"v":49100,"d":"49,100.00 Ft"}},{"$f":"SUMIFS(táblázatAdatok[ÖSSZEG],táblázatAdatok[DÁTUM],\">=\"&DATE(YEAR(táblázatAdatok[[#This Row],[DÁTUM]]),1,1),táblázatAdatok[DÁTUM],\"<=\"&DATE(YEAR(táblázatAdatok[[#This Row],[DÁTUM]]),12,31))","v":{"v":143800,"d":"143,800.00 Ft"}},{"$f":"IFERROR(TREND($L$6:INDEX($L:$L,ROW(),1),$K$6:INDEX($K:$K,ROW(),1),IF(MONTH(táblázatAdatok[[#This Row],[DÁTUM]])=12,13,MONTH(táblázatAdatok[[#This Row],[DÁTUM]])+1)),\"\")","v":{"v":10776.470588235294,"d":"10,776.47 Ft"}},{"$f":"IFERROR(TREND($M$6:INDEX($M:$M,ROW(),1),$I$6:INDEX($I:$I,ROW(),1),IF(táblázatAdatok[[#This Row],[NEGYEDÉV]]=4,5,táblázatAdatok[[#This Row],[NEGYEDÉV]]+1)),\"\")","v":{"v":47400,"d":"47,400.00 Ft"}},{"$f":"IFERROR(TREND($N$6:INDEX($N:$N,ROW(),1),$J$6:INDEX($J:$J,ROW(),1),táblázatAdatok[[#This Row],[ÉV]]+1),\"\")","v":{"v":143800,"d":"143,800.00 Ft"}}]
[null,{"$f":"40761+(365*2)","v":"2013-08-05"},"Proseware, Inc.",{"v":8500,"d":"8,500.00 Ft"},{"v":8300,"d":"8,300.00 Ft"},{"v":7100,"d":"7,100.00 Ft"},{"$f":"táblázatAdatok[[#This Row],[ÖSSZEG]]-táblázatAdatok[[#This Row],[KÖLTSÉG]]","v":{"v":1400,"d":"1,400.00 Ft"}},{"$f":"DATE(YEAR(Adatbevitel!$B15),MONTH(Adatbevitel!$B15),1)","v":"2013-08-01"},{"$f":"LOOKUP(MONTH(Adatbevitel!$H15),{1,1;2,1;3,1;4,2;5,2;6,2;7,3;8,3;9,3;10,4;11,4;12,4})","v":{"v":3,"d":"Negyedév 3"}},{"$f":"YEAR(Adatbevitel!$B15)","v":2013},{"$f":"MONTH(táblázatAdatok[[#This Row],[DÁTUM]])","v":8},{"$f":"SUMIFS(táblázatAdatok[ÖSSZEG],táblázatAdatok[DÁTUM],\">=\"&EOMONTH(táblázatAdatok[[#This Row],[DÁTUM]],-1)+1,táblázatAdatok[DÁTUM],\"<=\"&EOMONTH(táblázatAdatok[[#This Row],[DÁTUM]],0))","v":{"v":16400,"d":"16,400.00 Ft"}},{"$f":"SUMIFS(táblázatAdatok[ÖSSZEG],táblázatAdatok[DÁTUM],\">=\"&DATE(YEAR(táblázatAdatok[[#This Row],[DÁTUM]]),1,1),táblázatAdatok[DÁTUM],\"<=\"&DATE(YEAR(táblázatAdatok[[#This Row],[DÁTUM]]),12,31),táblázatAdatok[NEGYEDÉV],táblázatAdatok[[#This Row],[NEGYEDÉV]])","v":{"v":49100,"d":"49,100.00 Ft"}},{"$f":"SUMIFS(táblázatAdatok[ÖSSZEG],táblázatAdatok[DÁTUM],\">=\"&DATE(YEAR(táblázatAdatok[[#This Row],[DÁTUM]]),1,1),táblázatAdatok[DÁTUM],\"<=\"&DATE(YEAR(táblázatAdatok[[#This Row],[DÁTUM]]),12,31))","v":{"v":143800,"d":"143,800.00 Ft"}},{"$f":"IFERROR(TREND($L$6:INDEX($L:$L,ROW(),1),$K$6:INDEX($K:$K,ROW(),1),IF(MONTH(táblázatAdatok[[#This Row],[DÁTUM]])=12,13,MONTH(táblázatAdatok[[#This Row],[DÁTUM]])+1)),\"\")","v":{"v":12455.862068965516,"d":"12,455.86 Ft"}},{"$f":"IFERROR(TREND($M$6:INDEX($M:$M,ROW(),1),$I$6:INDEX($I:$I,ROW(),1),IF(táblázatAdatok[[#This Row],[NEGYEDÉV]]=4,5,táblázatAdatok[[#This Row],[NEGYEDÉV]]+1)),\"\")","v":{"v":47400,"d":"47,400.00 Ft"}},{"$f":"IFERROR(TREND($N$6:INDEX($N:$N,ROW(),1),$J$6:INDEX($J:$J,ROW(),1),táblázatAdatok[[#This Row],[ÉV]]+1),\"\")","v":{"v":143800,"d":"143,800.00 Ft"}}]
[null,{"$f":"40775+(365*2)","v":"2013-08-19"},"Képzőművészeti Iskola",{"v":7900,"d":"7,900.00 Ft"},{"v":7700,"d":"7,700.00 Ft"},{"v":6600,"d":"6,600.00 Ft"},{"$f":"táblázatAdatok[[#This Row],[ÖSSZEG]]-táblázatAdatok[[#This Row],[KÖLTSÉG]]","v":{"v":1300,"d":"1,300.00 Ft"}},{"$f":"DATE(YEAR(Adatbevitel!$B16),MONTH(Adatbevitel!$B16),1)","v":"2013-08-01"},{"$f":"LOOKUP(MONTH(Adatbevitel!$H16),{1,1;2,1;3,1;4,2;5,2;6,2;7,3;8,3;9,3;10,4;11,4;12,4})","v":{"v":3,"d":"Negyedév 3"}},{"$f":"YEAR(Adatbevitel!$B16)","v":2013},{"$f":"MONTH(táblázatAdatok[[#This Row],[DÁTUM]])","v":8},{"$f":"SUMIFS(táblázatAdatok[ÖSSZEG],táblázatAdatok[DÁTUM],\">=\"&EOMONTH(táblázatAdatok[[#This Row],[DÁTUM]],-1)+1,táblázatAdatok[DÁTUM],\"<=\"&EOMONTH(táblázatAdatok[[#This Row],[DÁTUM]],0))","v":{"v":16400,"d":"16,400.00 Ft"}},{"$f":"SUMIFS(táblázatAdatok[ÖSSZEG],táblázatAdatok[DÁTUM],\">=\"&DATE(YEAR(táblázatAdatok[[#This Row],[DÁTUM]]),1,1),táblázatAdatok[DÁTUM],\"<=\"&DATE(YEAR(táblázatAdatok[[#This Row],[DÁTUM]]),12,31),táblázatAdatok[NEGYEDÉV],táblázatAdatok[[#This Row],[NEGYEDÉV]])","v":{"v":49100,"d":"49,100.00 Ft"}},{"$f":"SUMIFS(táblázatAdatok[ÖSSZEG],táblázatAdatok[DÁTUM],\">=\"&DATE(YEAR(táblázatAdatok[[#This Row],[DÁTUM]]),1,1),táblázatAdatok[DÁTUM],\"<=\"&DATE(YEAR(táblázatAdatok[[#This Row],[DÁTUM]]),12,31))","v":{"v":143800,"d":"143,800.00 Ft"}},{"$f":"IFERROR(TREND($L$6:INDEX($L:$L,ROW(),1),$K$6:INDEX($K:$K,ROW(),1),IF(MONTH(táblázatAdatok[[#This Row],[DÁTUM]])=12,13,MONTH(táblázatAdatok[[#This Row],[DÁTUM]])+1)),\"\")","v":{"v":13667.567567567567,"d":"13,667.57 Ft"}},{"$f":"IFERROR(TREND($M$6:INDEX($M:$M,ROW(),1),$I$6:INDEX($I:$I,ROW(),1),IF(táblázatAdatok[[#This Row],[NEGYEDÉV]]=4,5,táblázatAdatok[[#This Row],[NEGYEDÉV]]+1)),\"\")","v":{"v":47400.00000000001,"d":"47,400.00 Ft"}},{"$f":"IFERROR(TREND($N$6:INDEX($N:$N,ROW(),1),$J$6:INDEX($J:$J,ROW(),1),táblázatAdatok[[#This Row],[ÉV]]+1),\"\")","v":{"v":143800,"d":"143,800.00 Ft"}}]
[null,{"$f":"40791+(365*2)","v":"2013-09-04"},"Trey Research",{"v":9100,"d":"9,100.00 Ft"},{"v":8900,"d":"8,900.00 Ft"},{"v":7900,"d":"7,900.00 Ft"},{"$f":"táblázatAdatok[[#This Row],[ÖSSZEG]]-táblázatAdatok[[#This Row],[KÖLTSÉG]]","v":{"v":1200,"d":"1,200.00 Ft"}},{"$f":"DATE(YEAR(Adatbevitel!$B17),MONTH(Adatbevitel!$B17),1)","v":"2013-09-01"},{"$f":"LOOKUP(MONTH(Adatbevitel!$H17),{1,1;2,1;3,1;4,2;5,2;6,2;7,3;8,3;9,3;10,4;11,4;12,4})","v":{"v":3,"d":"Negyedév 3"}},{"$f":"YEAR(Adatbevitel!$B17)","v":2013},{"$f":"MONTH(táblázatAdatok[[#This Row],[DÁTUM]])","v":9},{"$f":"SUMIFS(táblázatAdatok[ÖSSZEG],táblázatAdatok[DÁTUM],\">=\"&EOMONTH(táblázatAdatok[[#This Row],[DÁTUM]],-1)+1,táblázatAdatok[DÁTUM],\"<=\"&EOMONTH(táblázatAdatok[[#This Row],[DÁTUM]],0))","v":{"v":24000,"d":"24,000.00 Ft"}},{"$f":"SUMIFS(táblázatAdatok[ÖSSZEG],táblázatAdatok[DÁTUM],\">=\"&DATE(YEAR(táblázatAdatok[[#This Row],[DÁTUM]]),1,1),táblázatAdatok[DÁTUM],\"<=\"&DATE(YEAR(táblázatAdatok[[#This Row],[DÁTUM]]),12,31),táblázatAdatok[NEGYEDÉV],táblázatAdatok[[#This Row],[NEGYEDÉV]])","v":{"v":49100,"d":"49,100.00 Ft"}},{"$f":"SUMIFS(táblázatAdatok[ÖSSZEG],táblázatAdatok[DÁTUM],\">=\"&DATE(YEAR(táblázatAdatok[[#This Row],[DÁTUM]]),1,1),táblázatAdatok[DÁTUM],\"<=\"&DATE(YEAR(táblázatAdatok[[#This Row],[DÁTUM]]),12,31))","v":{"v":143800,"d":"143,800.00 Ft"}},{"$f":"IFERROR(TREND($L$6:INDEX($L:$L,ROW(),1),$K$6:INDEX($K:$K,ROW(),1),IF(MONTH(táblázatAdatok[[#This Row],[DÁTUM]])=12,13,MONTH(táblázatAdatok[[#This Row],[DÁTUM]])+1)),\"\")","v":{"v":17651.666666666668,"d":"17,651.67 Ft"}},{"$f":"IFERROR(TREND($M$6:INDEX($M:$M,ROW(),1),$I$6:INDEX($I:$I,ROW(),1),IF(táblázatAdatok[[#This Row],[NEGYEDÉV]]=4,5,táblázatAdatok[[#This Row],[NEGYEDÉV]]+1)),\"\")","v":{"v":47400,"d":"47,400.00 Ft"}},{"$f":"IFERROR(TREND($N$6:INDEX($N:$N,ROW(),1),$J$6:INDEX($J:$J,ROW(),1),táblázatAdatok[[#This Row],[ÉV]]+1),\"\")","v":{"v":143800,"d":"143,800.00 Ft"}}]
[null,{"$f":"40807+(365*2)","v":"2013-09-20"},"Contoso Pharmaceuticals",{"v":5600,"d":"5,600.00 Ft"},{"v":5800,"d":"5,800.00 Ft"},{"v":4500,"d":"4,500.00 Ft"},{"$f":"táblázatAdatok[[#This Row],[ÖSSZEG]]-táblázatAdatok[[#This Row],[KÖLTSÉG]]","v":{"v":1100,"d":"1,100.00 Ft"}},{"$f":"DATE(YEAR(Adatbevitel!$B18),MONTH(Adatbevitel!$B18),1)","v":"2013-09-01"},{"$f":"LOOKUP(MONTH(Adatbevitel!$H18),{1,1;2,1;3,1;4,2;5,2;6,2;7,3;8,3;9,3;10,4;11,4;12,4})","v":{"v":3,"d":"Negyedév 3"}},{"$f":"YEAR(Adatbevitel!$B18)","v":2013},{"$f":"MONTH(táblázatAdatok[[#This Row],[DÁTUM]])","v":9},{"$f":"SUMIFS(táblázatAdatok[ÖSSZEG],táblázatAdatok[DÁTUM],\">=\"&EOMONTH(táblázatAdatok[[#This Row],[DÁTUM]],-1)+1,táblázatAdatok[DÁTUM],\"<=\"&EOMONTH(táblázatAdatok[[#This Row],[DÁTUM]],0))","v":{"v":24000,"d":"24,000.00 Ft"}},{"$f":"SUMIFS(táblázatAdatok[ÖSSZEG],táblázatAdatok[DÁTUM],\">=\"&DATE(YEAR(táblázatAdatok[[#This Row],[DÁTUM]]),1,1),táblázatAdatok[DÁTUM],\"<=\"&DATE(YEAR(táblázatAdatok[[#This Row],[DÁTUM]]),12,31),táblázatAdatok[NEGYEDÉV],táblázatAdatok[[#This Row],[NEGYEDÉV]])","v":{"v":49100,"d":"49,100.00 Ft"}},{"$f":"SUMIFS(táblázatAdatok[ÖSSZEG],táblázatAdatok[DÁTUM],\">=\"&DATE(YEAR(táblázatAdatok[[#This Row],[DÁTUM]]),1,1),táblázatAdatok[DÁTUM],\"<=\"&DATE(YEAR(táblázatAdatok[[#This Row],[DÁTUM]]),12,31))","v":{"v":143800,"d":"143,800.00 Ft"}},{"$f":"IFERROR(TREND($L$6:INDEX($L:$L,ROW(),1),$K$6:INDEX($K:$K,ROW(),1),IF(MONTH(táblázatAdatok[[#This Row],[DÁTUM]])=12,13,MONTH(táblázatAdatok[[#This Row],[DÁTUM]])+1)),\"\")","v":{"v":19877.911646586344,"d":"19,877.91 Ft"}},{"$f":"IFERROR(TREND($M$6:INDEX($M:$M,ROW(),1),$I$6:INDEX($I:$I,ROW(),1),IF(táblázatAdatok[[#This Row],[NEGYEDÉV]]=4,5,táblázatAdatok[[#This Row],[NEGYEDÉV]]+1)),\"\")","v":{"v":47400,"d":"47,400.00 Ft"}},{"$f":"IFERROR(TREND($N$6:INDEX($N:$N,ROW(),1),$J$6:INDEX($J:$J,ROW(),1),táblázatAdatok[[#This Row],[ÉV]]+1),\"\")","v":{"v":143800,"d":"143,800.00 Ft"}}]
[null,{"$f":"40812+(365*2)","v":"2013-09-25"},"Consolidated Messenger",{"v":9300,"d":"9,300.00 Ft"},{"v":9100,"d":"9,100.00 Ft"},{"v":7500,"d":"7,500.00 Ft"},{"$f":"táblázatAdatok[[#This Row],[ÖSSZEG]]-táblázatAdatok[[#This Row],[KÖLTSÉG]]","v":{"v":1800,"d":"1,800.00 Ft"}},{"$f":"DATE(YEAR(Adatbevitel!$B19),MONTH(Adatbevitel!$B19),1)","v":"2013-09-01"},{"$f":"LOOKUP(MONTH(Adatbevitel!$H19),{1,1;2,1;3,1;4,2;5,2;6,2;7,3;8,3;9,3;10,4;11,4;12,4})","v":{"v":3,"d":"Negyedév 3"}},{"$f":"YEAR(Adatbevitel!$B19)","v":2013},{"$f":"MONTH(táblázatAdatok[[#This Row],[DÁTUM]])","v":9},{"$f":"SUMIFS(táblázatAdatok[ÖSSZEG],táblázatAdatok[DÁTUM],\">=\"&EOMONTH(táblázatAdatok[[#This Row],[DÁTUM]],-1)+1,táblázatAdatok[DÁTUM],\"<=\"&EOMONTH(táblázatAdatok[[#This Row],[DÁTUM]],0))","v":{"v":24000,"d":"24,000.00 Ft"}},{"$f":"SUMIFS(táblázatAdatok[ÖSSZEG],táblázatAdatok[DÁTUM],\">=\"&DATE(YEAR(táblázatAdatok[[#This Row],[DÁTUM]]),1,1),táblázatAdatok[DÁTUM],\"<=\"&DATE(YEAR(táblázatAdatok[[#This Row],[DÁTUM]]),12,31),táblázatAdatok[NEGYEDÉV],táblázatAdatok[[#This Row],[NEGYEDÉV]])","v":{"v":49100,"d":"49,100.00 Ft"}},{"$f":"SUMIFS(táblázatAdatok[ÖSSZEG],táblázatAdatok[DÁTUM],\">=\"&DATE(YEAR(táblázatAdatok[[#This Row],[DÁTUM]]),1,1),táblázatAdatok[DÁTUM],\"<=\"&DATE(YEAR(táblázatAdatok[[#This Row],[DÁTUM]]),12,31))","v":{"v":143800,"d":"143,800.00 Ft"}},{"$f":"IFERROR(TREND($L$6:INDEX($L:$L,ROW(),1),$K$6:INDEX($K:$K,ROW(),1),IF(MONTH(táblázatAdatok[[#This Row],[DÁTUM]])=12,13,MONTH(táblázatAdatok[[#This Row],[DÁTUM]])+1)),\"\")","v":{"v":21138.050314465407,"d":"21,138.05 Ft"}},{"$f":"IFERROR(TREND($M$6:INDEX($M:$M,ROW(),1),$I$6:INDEX($I:$I,ROW(),1),IF(táblázatAdatok[[#This Row],[NEGYEDÉV]]=4,5,táblázatAdatok[[#This Row],[NEGYEDÉV]]+1)),\"\")","v":{"v":47400,"d":"47,400.00 Ft"}},{"$f":"IFERROR(TREND($N$6:INDEX($N:$N,ROW(),1),$J$6:INDEX($J:$J,ROW(),1),táblázatAdatok[[#This Row],[ÉV]]+1),\"\")","v":{"v":143800,"d":"143,800.00 Ft"}}]
[null,{"$f":"40832+(365*2)","v":"2013-10-15"},"Proseware, Inc.",{"v":8800,"d":"8,800.00 Ft"},{"v":9350,"d":"9,350.00 Ft"},{"v":7100,"d":"7,100.00 Ft"},{"$f":"táblázatAdatok[[#This Row],[ÖSSZEG]]-táblázatAdatok[[#This Row],[KÖLTSÉG]]","v":{"v":1700,"d":"1,700.00 Ft"}},{"$f":"DATE(YEAR(Adatbevitel!$B20),MONTH(Adatbevitel!$B20),1)","v":"2013-10-01"},{"$f":"LOOKUP(MONTH(Adatbevitel!$H20),{1,1;2,1;3,1;4,2;5,2;6,2;7,3;8,3;9,3;10,4;11,4;12,4})","v":{"v":4,"d":"Negyedév 4"}},{"$f":"YEAR(Adatbevitel!$B20)","v":2013},{"$f":"MONTH(táblázatAdatok[[#This Row],[DÁTUM]])","v":10},{"$f":"SUMIFS(táblázatAdatok[ÖSSZEG],táblázatAdatok[DÁTUM],\">=\"&EOMONTH(táblázatAdatok[[#This Row],[DÁTUM]],-1)+1,táblázatAdatok[DÁTUM],\"<=\"&EOMONTH(táblázatAdatok[[#This Row],[DÁTUM]],0))","v":{"v":8800,"d":"8,800.00 Ft"}},{"$f":"SUMIFS(táblázatAdatok[ÖSSZEG],táblázatAdatok[DÁTUM],\">=\"&DATE(YEAR(táblázatAdatok[[#This Row],[DÁTUM]]),1,1),táblázatAdatok[DÁTUM],\"<=\"&DATE(YEAR(táblázatAdatok[[#This Row],[DÁTUM]]),12,31),táblázatAdatok[NEGYEDÉV],táblázatAdatok[[#This Row],[NEGYEDÉV]])","v":{"v":43900,"d":"43,900.00 Ft"}},{"$f":"SUMIFS(táblázatAdatok[ÖSSZEG],táblázatAdatok[DÁTUM],\">=\"&DATE(YEAR(táblázatAdatok[[#This Row],[DÁTUM]]),1,1),táblázatAdatok[DÁTUM],\"<=\"&DATE(YEAR(táblázatAdatok[[#This Row],[DÁTUM]]),12,31))","v":{"v":143800,"d":"143,800.00 Ft"}},{"$f":"IFERROR(TREND($L$6:INDEX($L:$L,ROW(),1),$K$6:INDEX($K:$K,ROW(),1),IF(MONTH(táblázatAdatok[[#This Row],[DÁTUM]])=12,13,MONTH(táblázatAdatok[[#This Row],[DÁTUM]])+1)),\"\")","v":{"v":17951.74418604651,"d":"17,951.74 Ft"}},{"$f":"IFERROR(TREND($M$6:INDEX($M:$M,ROW(),1),$I$6:INDEX($I:$I,ROW(),1),IF(táblázatAdatok[[#This Row],[NEGYEDÉV]]=4,5,táblázatAdatok[[#This Row],[NEGYEDÉV]]+1)),\"\")","v":{"v":43258.139534883725,"d":"43,258.14 Ft"}},{"$f":"IFERROR(TREND($N$6:INDEX($N:$N,ROW(),1),$J$6:INDEX($J:$J,ROW(),1),táblázatAdatok[[#This Row],[ÉV]]+1),\"\")","v":{"v":143800,"d":"143,800.00 Ft"}}]
[null,{"$f":"40853+(365*2)","v":"2013-11-05"},"Képzőművészeti Iskola",{"v":9100,"d":"9,100.00 Ft"},{"v":9200,"d":"9,200.00 Ft"},{"v":7850,"d":"7,850.00 Ft"},{"$f":"táblázatAdatok[[#This Row],[ÖSSZEG]]-táblázatAdatok[[#This Row],[KÖLTSÉG]]","v":{"v":1250,"d":"1,250.00 Ft"}},{"$f":"DATE(YEAR(Adatbevitel!$B21),MONTH(Adatbevitel!$B21),1)","v":"2013-11-01"},{"$f":"LOOKUP(MONTH(Adatbevitel!$H21),{1,1;2,1;3,1;4,2;5,2;6,2;7,3;8,3;9,3;10,4;11,4;12,4})","v":{"v":4,"d":"Negyedév 4"}},{"$f":"YEAR(Adatbevitel!$B21)","v":2013},{"$f":"MONTH(táblázatAdatok[[#This Row],[DÁTUM]])","v":11},{"$f":"SUMIFS(táblázatAdatok[ÖSSZEG],táblázatAdatok[DÁTUM],\">=\"&EOMONTH(táblázatAdatok[[#This Row],[DÁTUM]],-1)+1,táblázatAdatok[DÁTUM],\"<=\"&EOMONTH(táblázatAdatok[[#This Row],[DÁTUM]],0))","v":{"v":25600,"d":"25,600.00 Ft"}},{"$f":"SUMIFS(táblázatAdatok[ÖSSZEG],táblázatAdatok[DÁTUM],\">=\"&DATE(YEAR(táblázatAdatok[[#This Row],[DÁTUM]]),1,1),táblázatAdatok[DÁTUM],\"<=\"&DATE(YEAR(táblázatAdatok[[#This Row],[DÁTUM]]),12,31),táblázatAdatok[NEGYEDÉV],táblázatAdatok[[#This Row],[NEGYEDÉV]])","v":{"v":43900,"d":"43,900.00 Ft"}},{"$f":"SUMIFS(táblázatAdatok[ÖSSZEG],táblázatAdatok[DÁTUM],\">=\"&DATE(YEAR(táblázatAdatok[[#This Row],[DÁTUM]]),1,1),táblázatAdatok[DÁTUM],\"<=\"&DATE(YEAR(táblázatAdatok[[#This Row],[DÁTUM]]),12,31))","v":{"v":143800,"d":"143,800.00 Ft"}},{"$f":"IFERROR(TREND($L$6:INDEX($L:$L,ROW(),1),$K$6:INDEX($K:$K,ROW(),1),IF(MONTH(táblázatAdatok[[#This Row],[DÁTUM]])=12,13,MONTH(táblázatAdatok[[#This Row],[DÁTUM]])+1)),\"\")","v":{"v":20556.130108423687,"d":"20,556.13 Ft"}},{"$f":"IFERROR(TREND($M$6:INDEX($M:$M,ROW(),1),$I$6:INDEX($I:$I,ROW(),1),IF(táblázatAdatok[[#This Row],[NEGYEDÉV]]=4,5,táblázatAdatok[[#This Row],[NEGYEDÉV]]+1)),\"\")","v":{"v":42312.90322580645,"d":"42,312.90 Ft"}},{"$f":"IFERROR(TREND($N$6:INDEX($N:$N,ROW(),1),$J$6:INDEX($J:$J,ROW(),1),táblázatAdatok[[#This Row],[ÉV]]+1),\"\")","v":{"v":143800,"d":"143,800.00 Ft"}}]
[null,{"$f":"40874+(365*2)","v":"2013-11-26"},"Trey Research",{"v":9000,"d":"9,000.00 Ft"},{"v":10000,"d":"10,000.00 Ft"},{"v":7575,"d":"7,575.00 Ft"},{"$f":"táblázatAdatok[[#This Row],[ÖSSZEG]]-táblázatAdatok[[#This Row],[KÖLTSÉG]]","v":{"v":1425,"d":"1,425.00 Ft"}},{"$f":"DATE(YEAR(Adatbevitel!$B22),MONTH(Adatbevitel!$B22),1)","v":"2013-11-01"},{"$f":"LOOKUP(MONTH(Adatbevitel!$H22),{1,1;2,1;3,1;4,2;5,2;6,2;7,3;8,3;9,3;10,4;11,4;12,4})","v":{"v":4,"d":"Negyedév 4"}},{"$f":"YEAR(Adatbevitel!$B22)","v":2013},{"$f":"MONTH(táblázatAdatok[[#This Row],[DÁTUM]])","v":11},{"$f":"SUMIFS(táblázatAdatok[ÖSSZEG],táblázatAdatok[DÁTUM],\">=\"&EOMONTH(táblázatAdatok[[#This Row],[DÁTUM]],-1)+1,táblázatAdatok[DÁTUM],\"<=\"&EOMONTH(táblázatAdatok[[#This Row],[DÁTUM]],0))","v":{"v":25600,"d":"25,600.00 Ft"}},{"$f":"SUMIFS(táblázatAdatok[ÖSSZEG],táblázatAdatok[DÁTUM],\">=\"&DATE(YEAR(táblázatAdatok[[#This Row],[DÁTUM]]),1,1),táblázatAdatok[DÁTUM],\"<=\"&DATE(YEAR(táblázatAdatok[[#This Row],[DÁTUM]]),12,31),táblázatAdatok[NEGYEDÉV],táblázatAdatok[[#This Row],[NEGYEDÉV]])","v":{"v":43900,"d":"43,900.00 Ft"}},{"$f":"SUMIFS(táblázatAdatok[ÖSSZEG],táblázatAdatok[DÁTUM],\">=\"&DATE(YEAR(táblázatAdatok[[#This Row],[DÁTUM]]),1,1),táblázatAdatok[DÁTUM],\"<=\"&DATE(YEAR(táblázatAdatok[[#This Row],[DÁTUM]]),12,31))","v":{"v":143800,"d":"143,800.00 Ft"}},{"$f":"IFERROR(TREND($L$6:INDEX($L:$L,ROW(),1),$K$6:INDEX($K:$K,ROW(),1),IF(MONTH(táblázatAdatok[[#This Row],[DÁTUM]])=12,13,MONTH(táblázatAdatok[[#This Row],[DÁTUM]])+1)),\"\")","v":{"v":21997.139141742522,"d":"21,997.14 Ft"}},{"$f":"IFERROR(TREND($M$6:INDEX($M:$M,ROW(),1),$I$6:INDEX($I:$I,ROW(),1),IF(táblázatAdatok[[#This Row],[NEGYEDÉV]]=4,5,táblázatAdatok[[#This Row],[NEGYEDÉV]]+1)),\"\")","v":{"v":41811.11111111111,"d":"41,811.11 Ft"}},{"$f":"IFERROR(TREND($N$6:INDEX($N:$N,ROW(),1),$J$6:INDEX($J:$J,ROW(),1),táblázatAdatok[[#This Row],[ÉV]]+1),\"\")","v":{"v":143800,"d":"143,800.00 Ft"}}]
[null,{"$f":"40878+(365*2)","v":"2013-11-30"},"Trey Research",{"v":7500,"d":"7,500.00 Ft"},{"v":8000,"d":"8,000.00 Ft"},{"v":5850,"d":"5,850.00 Ft"},{"$f":"táblázatAdatok[[#This Row],[ÖSSZEG]]-táblázatAdatok[[#This Row],[KÖLTSÉG]]","v":{"v":1650,"d":"1,650.00 Ft"}},{"$f":"DATE(YEAR(Adatbevitel!$B23),MONTH(Adatbevitel!$B23),1)","v":"2013-11-01"},{"$f":"LOOKUP(MONTH(Adatbevitel!$H23),{1,1;2,1;3,1;4,2;5,2;6,2;7,3;8,3;9,3;10,4;11,4;12,4})","v":{"v":4,"d":"Negyedév 4"}},{"$f":"YEAR(Adatbevitel!$B23)","v":2013},{"$f":"MONTH(táblázatAdatok[[#This Row],[DÁTUM]])","v":11},{"$f":"SUMIFS(táblázatAdatok[ÖSSZEG],táblázatAdatok[DÁTUM],\">=\"&EOMONTH(táblázatAdatok[[#This Row],[DÁTUM]],-1)+1,táblázatAdatok[DÁTUM],\"<=\"&EOMONTH(táblázatAdatok[[#This Row],[DÁTUM]],0))","v":{"v":25600,"d":"25,600.00 Ft"}},{"$f":"SUMIFS(táblázatAdatok[ÖSSZEG],táblázatAdatok[DÁTUM],\">=\"&DATE(YEAR(táblázatAdatok[[#This Row],[DÁTUM]]),1,1),táblázatAdatok[DÁTUM],\"<=\"&DATE(YEAR(táblázatAdatok[[#This Row],[DÁTUM]]),12,31),táblázatAdatok[NEGYEDÉV],táblázatAdatok[[#This Row],[NEGYEDÉV]])","v":{"v":43900,"d":"43,900.00 Ft"}},{"$f":"SUMIFS(táblázatAdatok[ÖSSZEG],táblázatAdatok[DÁTUM],\">=\"&DATE(YEAR(táblázatAdatok[[#This Row],[DÁTUM]]),1,1),táblázatAdatok[DÁTUM],\"<=\"&DATE(YEAR(táblázatAdatok[[#This Row],[DÁTUM]]),12,31))","v":{"v":143800,"d":"143,800.00 Ft"}},{"$f":"IFERROR(TREND($L$6:INDEX($L:$L,ROW(),1),$K$6:INDEX($K:$K,ROW(),1),IF(MONTH(táblázatAdatok[[#This Row],[DÁTUM]])=12,13,MONTH(táblázatAdatok[[#This Row],[DÁTUM]])+1)),\"\")","v":{"v":22917.63452317528,"d":"22,917.63 Ft"}},{"$f":"IFERROR(TREND($M$6:INDEX($M:$M,ROW(),1),$I$6:INDEX($I:$I,ROW(),1),IF(táblázatAdatok[[#This Row],[NEGYEDÉV]]=4,5,táblázatAdatok[[#This Row],[NEGYEDÉV]]+1)),\"\")","v":{"v":41500,"d":"41,500.00 Ft"}},{"$f":"IFERROR(TREND($N$6:INDEX($N:$N,ROW(),1),$J$6:INDEX($J:$J,ROW(),1),táblázatAdatok[[#This Row],[ÉV]]+1),\"\")","v":{"v":143800,"d":"143,800.00 Ft"}}]
[null,{"$f":"40889+(365*2)","v":"2013-12-11"},"Contoso Pharmaceuticals",{"v":9500,"d":"9,500.00 Ft"},{"v":9200,"d":"9,200.00 Ft"},{"v":8500,"d":"8,500.00 Ft"},{"$f":"táblázatAdatok[[#This Row],[ÖSSZEG]]-táblázatAdatok[[#This Row],[KÖLTSÉG]]","v":{"v":1000,"d":"1,000.00 Ft"}},{"$f":"DATE(YEAR(Adatbevitel!$B24),MONTH(Adatbevitel!$B24),1)","v":"2013-12-01"},{"$f":"LOOKUP(MONTH(Adatbevitel!$H24),{1,1;2,1;3,1;4,2;5,2;6,2;7,3;8,3;9,3;10,4;11,4;12,4})","v":{"v":4,"d":"Negyedév 4"}},{"$f":"YEAR(Adatbevitel!$B24)","v":2013},{"$f":"MONTH(táblázatAdatok[[#This Row],[DÁTUM]])","v":12},{"$f":"SUMIFS(táblázatAdatok[ÖSSZEG],táblázatAdatok[DÁTUM],\">=\"&EOMONTH(táblázatAdatok[[#This Row],[DÁTUM]],-1)+1,táblázatAdatok[DÁTUM],\"<=\"&EOMONTH(táblázatAdatok[[#This Row],[DÁTUM]],0))","v":{"v":9500,"d":"9,500.00 Ft"}},{"$f":"SUMIFS(táblázatAdatok[ÖSSZEG],táblázatAdatok[DÁTUM],\">=\"&DATE(YEAR(táblázatAdatok[[#This Row],[DÁTUM]]),1,1),táblázatAdatok[DÁTUM],\"<=\"&DATE(YEAR(táblázatAdatok[[#This Row],[DÁTUM]]),12,31),táblázatAdatok[NEGYEDÉV],táblázatAdatok[[#This Row],[NEGYEDÉV]])","v":{"v":43900,"d":"43,900.00 Ft"}},{"$f":"SUMIFS(táblázatAdatok[ÖSSZEG],táblázatAdatok[DÁTUM],\">=\"&DATE(YEAR(táblázatAdatok[[#This Row],[DÁTUM]]),1,1),táblázatAdatok[DÁTUM],\"<=\"&DATE(YEAR(táblázatAdatok[[#This Row],[DÁTUM]]),12,31))","v":{"v":143800,"d":"143,800.00 Ft"}},{"$f":"IFERROR(TREND($L$6:INDEX($L:$L,ROW(),1),$K$6:INDEX($K:$K,ROW(),1),IF(MONTH(táblázatAdatok[[#This Row],[DÁTUM]])=12,13,MONTH(táblázatAdatok[[#This Row],[DÁTUM]])+1)),\"\")","v":{"v":20504.31472081218,"d":"20,504.31 Ft"}},{"$f":"IFERROR(TREND($M$6:INDEX($M:$M,ROW(),1),$I$6:INDEX($I:$I,ROW(),1),IF(táblázatAdatok[[#This Row],[NEGYEDÉV]]=4,5,táblázatAdatok[[#This Row],[NEGYEDÉV]]+1)),\"\")","v":{"v":41288.23529411765,"d":"41,288.24 Ft"}},{"$f":"IFERROR(TREND($N$6:INDEX($N:$N,ROW(),1),$J$6:INDEX($J:$J,ROW(),1),táblázatAdatok[[#This Row],[ÉV]]+1),\"\")","v":{"v":143800,"d":"143,800.00 Ft"}}]

{"sheet":"Értékesítési jelentés","index":1,"n_rows":27,"n_cols":6,"rows_kept":27}
[]
[null,"HAVI ÉRTÉKESÍTÉSI JELENTÉS"]
[]
[null,"ÉV","NEGYEDÉV","HÓNAP","VÁLLALAT","ÉRTÉKESÍTÉS ÖSSZESEN"]
[null,2013,{"v":2,"d":"Negyedév 2"},"2013-04-01","A. Datum Corporation",{"v":6400,"d":"6,400.00 Ft"}]
[{"$nulls":4},"Contoso Pharmaceuticals",{"v":8200,"d":"8,200.00 Ft"}]
[{"$nulls":3},"2013-05-01","Consolidated Messenger",{"v":4400,"d":"4,400.00 Ft"}]
[{"$nulls":4},"Képzőművészeti Iskola",{"v":5800,"d":"5,800.00 Ft"}]
[{"$nulls":4},"Proseware, Inc.",{"v":5400,"d":"5,400.00 Ft"}]
[{"$nulls":4},"Trey Research",{"v":6200,"d":"6,200.00 Ft"}]
[{"$nulls":3},"2013-06-01","A. Datum Corporation",{"v":6900,"d":"6,900.00 Ft"}]
[{"$nulls":4},"Contoso Pharmaceuticals",{"v":7500,"d":"7,500.00 Ft"}]
[null,null,"Negyedév 2 Összeg",null,null,{"v":50800,"d":"50,800.00 Ft"}]
[null,null,{"v":3,"d":"Negyedév 3"},"2013-07-01","Consolidated Messenger",{"v":8700,"d":"8,700.00 Ft"}]
[{"$nulls":3},"2013-08-01","Képzőművészeti Iskola",{"v":7900,"d":"7,900.00 Ft"}]
[{"$nulls":4},"Proseware, Inc.",{"v":8500,"d":"8,500.00 Ft"}]
[{"$nulls":3},"2013-09-01","Consolidated Messenger",{"v":9300,"d":"9,300.00 Ft"}]
[{"$nulls":4},"Contoso Pharmaceuticals",{"v":5600,"d":"5,600.00 Ft"}]
[{"$nulls":4},"Trey Research",{"v":9100,"d":"9,100.00 Ft"}]
[null,null,"Negyedév 3 Összeg",null,null,{"v":49100,"d":"49,100.00 Ft"}]
[null,null,{"v":4,"d":"Negyedév 4"},"2013-10-01","Proseware, Inc.",{"v":8800,"d":"8,800.00 Ft"}]
[{"$nulls":3},"2013-11-01","Képzőművészeti Iskola",{"v":9100,"d":"9,100.00 Ft"}]
[{"$nulls":4},"Trey Research",{"v":16500,"d":"16,500.00 Ft"}]
[{"$nulls":3},"2013-12-01","Contoso Pharmaceuticals",{"v":9500,"d":"9,500.00 Ft"}]
[null,null,"Negyedév 4 Összeg",null,null,{"v":43900,"d":"43,900.00 Ft"}]
[null,"2013 Összeg",{"$nulls":3},{"v":143800,"d":"143,800.00 Ft"}]
[null,"Végösszeg",{"$nulls":3},{"v":143800,"d":"143,800.00 Ft"}]

{"sheet":"Értékesítési előrejelzés","index":2,"n_rows":43,"n_cols":10,"rows_kept":43}
[]
[null,"HAVI ÉRTÉKESÍTÉSI ELŐREJELZÉS"]
[null,{"$f":"\"MAI DÁTUM: \"&UPPER(TEXT(TODAY(),\"n.hhh.éééé\"))","v":"MAI DÁTUM: 21.NOV.2012"},null,{"$f":"--TRIM(RIGHT(B3,LEN(B3)-FIND(\":\",B3)))","v":"2012-11-21"}]
[]
[null,"EZ A HÓNAP","TÉNYLEGES","TERVEZETT","ELTÉRÉS","%","EDDIGI ÉVES TÉNYLEGES","EDDIGI ÉVES TERVEZETT","EDDIGI ÉVES ELTÉRÉS","Eddigi éves %"]
[null,"Mennyiség",{"$f":"COUNTIF(Adatbevitel!$B$6:$B$24,\">=\"&DATE(pÉv,MONTH(pDátum),1))-COUNTIF(Adatbevitel!$B$6:$B$24,\">\"&EOMONTH(pDátum,0))","v":0},{"$nulls":3},{"$f":"COUNTIF(táblázatAdatok[DÁTUM],\"<=\"&EOMONTH(pDátum,0))","v":0}]
[null,"Értékesítés",{"$f":"SUMIF(táblázatAdatok[DÁTUM],\">=\"&DATE(pÉv,MONTH(pDátum),1),táblázatAdatok[ÖSSZEG])-SUMIF(táblázatAdatok[DÁTUM],\">\"&EOMONTH(pDátum,0),táblázatAdatok[ÖSSZEG])","v":{"v":0,"d":"0.00 Ft"}},{"$f":"SUMIF(Adatbevitel!$B$6:$B$24,\">=\"&DATE(pÉv,MONTH(pDátum),1),Adatbevitel!$E$6:$E$24)-SUMIF(Adatbevitel!$B$6:$B$24,\">\"&EOMONTH(pDátum,0),Adatbevitel!$E$6:$E$24)","v":{"v":0,"d":"0.00 Ft"}},{"$f":"D7-C7","v":{"v":0,"d":"0.00 Ft"}},{"$f":"IFERROR(D7/C7,\"-\")","v":"-"},{"$f":"SUMIF(táblázatAdatok[DÁTUM],\"<=\"&EOMONTH(pDátum,0),táblázatAdatok[ÖSSZEG])","v":{"v":0,"d":"0.00 Ft"}},{"$f":"SUMIF(táblázatAdatok[DÁTUM],\"<=\"&EOMONTH(pDátum,0),táblázatAdatok[TERVEZETT])","v":{"v":0,"d":"0.00 Ft"}},{"$f":"H7-G7","v":{"v":0,"d":"0.00 Ft"}},{"$f":"IFERROR(H7/G7,\"\")","v":""}]
[null,"Árbevétel",{"$f":"(SUMIF(táblázatAdatok[DÁTUM],\">=\"&DATE(pÉv,MONTH(pDátum),1),táblázatAdatok[ÖSSZEG])-SUMIF(táblázatAdatok[DÁTUM],\">\"&EOMONTH(pDátum,0),táblázatAdatok[ÖSSZEG]))-(SUMIF(táblázatAdatok[DÁTUM],\">=\"&DATE(pÉv,MONTH(pDátum),1),táblázatAdatok[KÖLTSÉG])-SUMIF(táblázatAdatok[DÁTUM],\">\"&EOMONTH(pDátum,0),táblázatAdatok[KÖLTSÉG]))","v":{"v":0,"d":"0.00 Ft"}},{"$f":"(SUMIF(Adatbevitel!$B$6:$B$24,\">=\"&DATE(pÉv,MONTH(pDátum),1),Adatbevitel!$E$6:$E$24)-SUMIF(Adatbevitel!$B$6:$B$24,\">\"&EOMONTH(pDátum,0),Adatbevitel!$E$6:$E$24))-(SUMIF(Adatbevitel!$B$6:$B$24,\">=\"&DATE(pÉv,MONTH(pDátum),1),Adatbevitel!$F$6:$F$24)-SUMIF(Adatbevitel!$B$6:$B$24,\">\"&EOMONTH(pDátum,0),Adatbevitel!$F$6:$F$24))","v":{"v":0,"d":"0.00 Ft"}},{"$f":"D8-C8","v":{"v":0,"d":"0.00 Ft"}},{"$f":"IFERROR(D8/C8,\"-\")","v":"-"},{"$f":"SUMIF(Adatbevitel!$B$6:$B$24,\"<=\"&EOMONTH(pDátum,0),Adatbevitel!$F$6:$F$24)","v":{"v":0,"d":"0.00 Ft"}},{"$f":"SUMIF(táblázatAdatok[DÁTUM],\"<=\"&EOMONTH(pDátum,0),táblázatAdatok[KÖLTSÉG])","v":{"v":0,"d":"0.00 Ft"}},{"$f":"H8-G8","v":{"v":0,"d":"0.00 Ft"}},{"$f":"IFERROR(H8/G8,\"\")","v":""}]
[null,"Árrés",{"$f":"IFERROR(C8/C7,\"-\")","v":"-"},{"$f":"IFERROR(D8/D7,\"-\")","v":"-"},null,{"$f":"IFERROR(F8/F7,\"-\")","v":"-"},{"$f":"IFERROR(G8/G7,\"\")","v":""},{"$f":"IFERROR(H8/H7,\"\")","v":""},null,{"$f":"IFERROR(J8/J7,\"\")","v":""}]
[null,"Megrendelések száma",{"$f":"COUNTIF(táblázatAdatok[DÁTUM],\">=\"&DATE(pÉv,MONTH(pDátum),1))-COUNTIF(táblázatAdatok[DÁTUM],\">\"&EOMONTH(pDátum,0))","v":0},{"$nulls":3},{"$f":"COUNTIF(táblázatAdatok[DÁTUM],\">\"&EOMONTH(pDátum,0))","v":19}]
[null,"Megrendelések átlagos értéke",{"$f":"IFERROR(C7/C10,\"-\")","v":"-"},{"$nulls":3},{"$f":"IFERROR(G7/G10,\"-\")","v":{"v":0,"d":"0.00 Ft"}}]
[]
[null,"ELŐREJELZÉS",null,"KÖVETKEZŐ HÓNAP",null,"KÖVETKEZŐ NEGYEDÉV",null,null,"KÖVETKEZŐ ÉV"]
[null,"Értékesítés",null,{"$f":"TREND(táblázatAdatok[[HÓNAP ]],táblázatAdatok[HÓNAP SZÁMA (ELREJTÉS)],IF(MONTH(pDátum)=12,13,MONTH(pDátum)+1))","v":{"v":20153.510998307953,"d":"20,153.51 Ft"}},null,{"$f":"TREND(táblázatAdatok[[NEGYEDÉV ]],táblázatAdatok[HÓNAP SZÁMA (ELREJTÉS)],IF(MONTH(pDátum)=12,13,MONTH(pDátum)+1))","v":{"v":44115.905245346876,"d":"44,115.91 Ft"}},null,null,{"$f":"TREND(táblázatAdatok[[ÉVES ]],táblázatAdatok[HÓNAP SZÁMA (ELREJTÉS)],IF(MONTH(pDátum)=12,13,MONTH(pDátum)+1))","v":{"v":143800,"d":"143,800.00 Ft"}}]
[]
[null,"KORÁBBI ÉRTÉKESÍTÉS"]
{"$rows_empty":13}
[null,"HAVI ELŐREJELZÉS",{"$nulls":3},"NEGYEDÉVES ELŐREJELZÉS"]
{"$rows_empty":7}
[null,"ÉVES ELŐREJELZÉS",{"$nulls":3},"BEVÉTELI FORRÁS"]
[]
[]
[]
[]
[{"$nulls":9}," "]